bitfinex/quotes_SOLUSD_20240703
["timestamp","ask_amount","ask_price","bid_price","bid_amount"]
[1719984035386,6.7129,148.97,148.92,6.7147]
[1719984036972,6.7124,148.98,148.93,6.7143]
[1719984037289,6.7124,148.98,148.94,6.714]
[1719984037859,13.71134196,148.99,148.95,6.7136]
[1719984039385,13.71134196,148.99,148.94,6.7139]
[1719984039587,6.7124,148.98,148.94,6.7139]
[1719984044291,6.7127,148.97,148.93,23.5001]
[1719984044970,6.7127,148.97,148.93,16.7856]
[1719984045384,6.7127,148.97,148.93,23.5001]
[1719984047797,15.18,148.96,148.93,23.5001]
[1719984050300,15.18,148.96,148.94,6.714]
[1719984050508,15.18,148.97,148.94,6.714]
[1719984050689,13.71124196,148.99,148.95,6.7135]
[1719984050876,15.18,148.97,148.95,6.7135]
[1719984051187,15.18,148.97,148.94,6.7139]
[1719984053176,6.99944196,148.99,148.95,23.497]
[1719984053380,6.99944196,148.99,148.98,6.7123]
[1719984053591,30.2778,149.01,148.98,6.7123]
[1719984054080,30.2778,149.01,148.97,23.4938]
[1719984054982,36.9889,149.01,148.97,23.4938]
[1719984055403,21.8089,149.01,148.97,23.4938]
[1719984055712,36.9889,149.01,148.97,23.4938]
[1719984057109,36.9889,149.01,148.97,16.7812]
[1719984058324,6.7111,149.01,148.97,16.7812]
[1719984058523,21.8911,149.01,148.97,16.7812]
[1719984059006,6.7114,149.0,148.97,16.7812]
[1719984059211,6.7114,149.0,148.96,21.8931]
[1719984059413,6.7114,149.0,148.96,6.7131]
[1719984059797,6.7114,149.0,148.96,21.8931]
[1719984061112,6.712,148.99,148.94,39.4758]
[1719984061293,6.712,148.99,148.94,54.6558]
[1719984061808,21.892,148.99,148.94,54.6558]
[1719984062210,21.892,148.99,148.95,6.7136]
[1719984063518,15.18,148.97,148.91,15.1948]
[1719984063696,6.7132,148.96,148.91,15.1948]
[1719984063890,15.18,148.96,148.89,6.3542]
[1719984064108,15.857,148.99,148.87,15.1948]
[1719984064109,15.18,148.94,148.87,15.1948]
[1719984064394,21.8944,148.94,148.89,6.7162]
[1719984064603,15.18,148.94,148.92,6.7148]
[1719984064808,22.18018033,148.95,148.92,6.7148]
[1719984065008,7.00018033,148.95,148.93,6.7143]
[1719984065223,15.18,148.97,148.94,6.7141]
[1719984065691,15.18,148.97,148.93,6.7145]
[1719984066015,21.8927,148.97,148.93,6.7145]
[1719984066224,6.7127,148.97,148.92,23.5013]
[1719984066408,21.8927,148.97,148.92,23.5013]
[1719984066722,15.18,148.95,148.91,6.7154]
[1719984066910,15.18,148.95,148.89,16.7906]
[1719984066911,15.18,148.94,148.9,6.7158]
[1719984068416,6.0566,148.97,148.86,16.7936]
[1719984068617,6.0566,148.97,148.87,6.7169]
[1719984068618,15.18,148.91,148.87,6.7169]
[1719984069004,15.18,148.91,148.88,6.7166]
[1719984069206,15.18,148.9,148.86,23.5111]
[1719984069430,15.18,148.9,148.87,6.7171]
[1719984070592,6.715,148.92,148.84,20.78419776]
[1719984070593,15.18,148.89,148.84,15.5567]
[1719984070797,15.18,148.89,148.85,6.7181]
[1719984071003,16.5617,148.94,148.86,6.7176]
[1719984071004,15.18,148.88,148.86,6.7176]
[1719984073821,15.18,148.88,148.85,16.7948]
[1719984073822,15.18,148.89,148.87,6.7172]
[1719984075606,15.18,148.89,148.88,6.7168]
[1719984075800,15.18,148.89,148.87,23.5098]
[1719984076023,15.18,148.88,148.85,6.7178]
[1719984076213,15.18,148.89,148.86,6.7176]
[1719984077325,15.18,148.88,148.85,6.7181]
[1719984078124,15.18,148.87,148.85,6.7181]
[1719984079007,15.18,148.88,148.85,6.7181]
[1719984079408,7.00370289,148.9,148.86,16.7938]
[1719984079811,22.18370289,148.9,148.86,16.7938]
[1719984080120,15.18,148.92,148.9,6.7157]
[1719984080324,15.18,148.93,148.9,6.7157]
[1719984080514,23.55454742,148.94,148.9,6.7157]
[1719984080713,15.18,148.93,148.9,6.7157]
[1719984081030,15.18,148.93,148.89,6.7163]
[1719984081031,15.18,148.92,148.89,6.7163]
[1719984081235,21.8947,148.93,148.89,6.7163]
[1719984082121,6.715,148.92,148.88,23.5084]
[1719984082299,21.8945,148.93,148.89,6.7163]
[1719984083104,21.8945,148.93,148.88,38.6883]
[1719984083814,6.7145,148.93,148.89,6.7162]
[1719984084127,6.99284742,148.94,148.88,16.7916]
[1719984084316,6.99284742,148.94,148.91,6.715]
[1719984085038,6.99284742,148.94,148.9,38.6848]
[1719984085542,6.99284742,148.94,148.88,6.7167]
[1719984085834,22.17284742,148.94,148.88,6.7167]
[1719984086419,6.7149,148.93,148.88,21.8967]
[1719984086735,6.7149,148.93,148.89,21.8962]
[1719984087330,28.88704742,148.94,148.9,6.7158]
[1719984087634,6.99284742,148.94,148.9,6.7158]
[1719984087929,6.99284742,148.94,148.9,21.8958]
[1719984088435,13.70704742,148.94,148.9,21.8958]
[1719984088622,6.99284742,148.94,148.86,16.7936]
[1719984088936,6.7162,148.9,148.86,16.7936]
[1719984089620,6.7162,148.9,148.86,23.5109]
[1719984089822,6.7162,148.9,148.86,38.6909]
[1719984090416,21.8956,148.91,148.86,38.6909]
[1719984090618,21.8959,148.9,148.86,23.5109]
[1719984091719,15.18,148.9,148.87,6.7172]
[1719984092126,21.8955,148.91,148.87,6.7172]
[1719984092536,15.18,148.91,148.87,6.7172]
[1719984094339,21.8955,148.91,148.87,6.7172]
[1719984095039,15.18,148.9,148.87,6.7172]
[1719984095827,15.18,148.9,148.86,16.7936]
[1719984095828,15.18,148.89,148.86,16.7936]
[1719984096023,15.18,148.89,148.86,23.5111]
[1719984096339,21.896,148.9,148.86,23.5111]
[1719984097640,15.18,148.89,148.86,23.5111]
[1719984099037,21.896,148.9,148.86,23.5111]
[1719984100552,15.18,148.89,148.86,23.5111]
[1719984100838,21.896,148.9,148.86,23.5111]
[1719984102544,7.00122531,148.92,148.9,6.7158]
[1719984102848,7.00122531,148.92,148.91,6.7154]
[1719984103030,15.18,148.94,148.9,6.7157]
[1719984103930,21.8943,148.94,148.9,6.7157]
[1719984104131,6.7145,148.93,148.89,21.8962]
[1719984104447,6.7145,148.93,148.89,6.7162]
[1719984105045,6.7145,148.93,148.88,38.688]
[1719984105230,6.7145,148.93,148.89,6.7163]
[1719984106141,6.7151,148.92,148.88,38.6879]
[1719984108155,15.18,148.91,148.85,16.7948]
[1719984108366,6.7162,148.9,148.86,21.8976]
[1719984109040,21.8951,148.92,148.87,21.8971]
[1719984109423,21.8951,148.92,148.88,6.7167]
[1719984109424,6.7151,148.92,148.88,6.7167]
[1719984109625,6.7151,148.92,148.88,21.8967]
[1719984110431,6.7151,148.92,148.88,15.18]
[1719984110630,6.7151,148.92,148.87,23.5097]
[1719984110831,6.7154,148.91,148.87,38.6897]
[1719984111049,6.7154,148.91,148.87,16.7926]
[1719984111445,6.7154,148.91,148.87,31.9726]
[1719984111753,6.7154,148.91,148.87,16.7926]
[1719984112337,15.18,148.92,148.85,6.718]
[1719984112556,15.18,148.89,148.84,38.6943]
[1719984112737,6.7168,148.88,148.84,38.6943]
[1719984112937,21.8964,148.89,148.85,6.7181]
[1719984113168,15.18,148.89,148.85,6.7181]
[1719984113632,15.18,148.89,148.86,6.7175]
[1719984113831,6.99450055,148.91,148.87,6.7172]
[1719984113832,28.89000055,148.91,148.87,6.7172]
[1719984114054,6.99450055,148.91,148.88,6.7167]
[1719984115265,6.99450055,148.91,148.87,21.8971]
[1719984115565,13.71010055,148.91,148.87,21.8971]
[1719984116069,13.71010055,148.91,148.87,6.7171]
[1719984116661,6.99450055,148.91,148.88,8.05973713]
[1719984117058,6.99450055,148.91,148.88,23.23973713]
[1719984117270,6.7151,148.92,148.88,23.23973713]
[1719984117763,6.7151,148.92,148.88,21.8966]
[1719984118375,6.7151,148.92,148.88,6.7166]
[1719984118565,6.7151,148.92,148.88,21.8966]
[1719984118779,6.7151,148.92,148.88,15.18]
[1719984118957,6.7151,148.92,148.88,21.8966]
[1719984119746,6.715,148.93,148.88,38.6877]
[1719984119967,21.895,148.93,148.89,6.7163]
[1719984120168,21.895,148.93,148.88,38.6877]
[1719984120672,6.715,148.92,148.88,38.6877]
[1719984121550,6.99407544,148.95,148.88,31.971]
[1719984121762,6.99407544,148.95,148.93,6.7144]
[1719984121949,6.7126,148.98,148.94,15.18]
[1719984122271,6.7126,148.98,148.94,21.894]
[1719984122477,6.7128,148.97,148.92,23.5013]
[1719984122879,6.7128,148.97,148.93,6.7144]
[1719984123056,21.8924,148.98,148.93,6.7144]
[1719984124681,6.7127,148.97,148.93,6.7144]
[1719984125182,6.7127,148.97,148.92,38.6815]
[1719984125880,21.8927,148.97,148.92,38.6815]
[1719984126181,15.18,148.94,148.9,6.7155]
[1719984126380,21.8944,148.94,148.9,6.7155]
[1719984127587,15.18,148.94,148.9,6.7155]
[1719984127955,15.18,148.94,148.89,16.7901]
[1719984128154,15.18,148.94,148.91,6.7153]
[1719984130368,15.18,148.94,148.9,6.7157]
[1719984130776,15.18,148.94,148.89,23.5064]
[1719984130967,15.18,148.91,148.88,6.7166]
[1719984131176,15.18,148.89,148.86,16.7934]
[1719984131370,15.18,148.89,148.86,23.511]
[1719984132783,13.71017165,148.91,148.88,16.7916]
[1719984132784,6.99467165,148.91,148.88,16.7916]
[1719984133085,15.18,148.94,148.89,15.18]
[1719984133282,15.18,148.94,148.9,6.7155]
[1719984133891,28.79914882,148.95,148.9,6.7155]
[1719984134268,6.7145,148.93,148.89,21.8963]
[1719984134889,15.18,148.93,148.9,6.7158]
[1719984135284,21.8945,148.93,148.89,6.7163]
[1719984136173,6.7145,148.93,148.89,6.7163]
[1719984136579,21.8945,148.93,148.89,6.7163]
[1719984138283,28.79934882,148.95,148.9,16.7893]
[1719984138595,15.18,148.94,148.9,16.7893]
[1719984138959,6.99584882,148.95,148.92,16.7866]
[1719984139890,6.12514331,148.96,148.92,16.7866]
[1719984140195,12.83844331,148.96,148.92,23.5015]
[1719984140378,12.83844331,148.96,148.92,16.7866]
[1719984140694,15.18,148.95,148.9,15.18]
[1719984141002,21.8941,148.94,148.89,38.6867]
[1719984141309,21.8941,148.94,148.89,23.5067]
[1719984141595,21.8947,148.93,148.89,23.5067]
[1719984141898,15.18,148.92,148.89,16.7905]
[1719984142768,15.18,148.92,148.89,23.5067]
[1719984143498,15.18,148.91,148.86,16.7935]
[1719984143664,15.18,148.9,148.88,6.7165]
[1719984143869,15.18,148.91,148.88,6.7165]
[1719984144291,15.18,148.91,148.89,6.7163]
[1719984144704,15.18,148.91,148.88,6.7166]
[1719984147676,15.18,148.89,148.86,16.7935]
[1719984149099,15.0033,148.92,148.86,16.7935]
[1719984149294,21.7184,148.92,148.86,16.7935]
[1719984149604,15.18,148.89,148.86,16.7935]
[1719984149996,15.18,148.9,148.86,16.7935]
[1719984150781,15.18,148.9,148.88,6.7166]
[1719984152699,15.18,148.9,148.87,6.7171]
[1719984153402,6.7156,148.91,148.87,6.7171]
[1719984153699,15.18,148.9,148.87,6.7171]
[1719984155902,15.18,148.91,148.88,6.7167]
[1719984157216,7.00010396,148.92,148.89,6.7161]
[1719984157387,7.00010396,148.92,148.9,6.7157]
[1719984157586,15.18,148.93,148.9,6.7157]
[1719984157788,15.18,148.92,148.9,6.7157]
[1719984158204,15.18,148.92,148.89,6.7162]
[1719984158445,21.8945,148.93,148.89,6.7162]
[1719984159116,15.18,148.92,148.89,6.7162]
[1719984159410,15.18,148.92,148.88,23.508]
[1719984160415,6.7145,148.93,148.88,23.508]
[1719984160714,15.18,148.92,148.88,23.508]
[1719984161018,21.8945,148.93,148.88,23.508]
[1719984161387,6.715,148.92,148.88,23.508]
[1719984161709,6.7154,148.91,148.88,16.7913]
[1719984162010,6.7154,148.91,148.87,6.7171]
[1719984162214,21.8954,148.91,148.87,6.7171]
[1719984165391,15.18,148.91,148.88,6.7167]
[1719984168813,15.18,148.91,148.87,23.5099]
[1719984168992,15.18,148.9,148.87,23.5099]
[1719984169614,15.18,148.9,148.88,6.7167]
[1719984169912,15.18,148.91,148.89,6.7163]
[1719984170093,22.18067265,148.92,148.89,6.7163]
[1719984171394,22.18067265,148.92,148.88,6.7166]
[1719984172193,28.89567265,148.92,148.88,6.7166]
[1719984172510,7.00067265,148.92,148.91,6.7154]
[1719984172708,15.18,148.94,148.9,6.7157]
[1719984173016,15.18,148.93,148.89,16.7905]
[1719984173210,15.18,148.93,148.89,23.5067]
[1719984173446,21.8947,148.93,148.89,23.5067]
[1719984173924,21.8947,148.93,148.89,16.7905]
[1719984174413,21.8947,148.93,148.89,23.5068]
[1719984174594,15.18,148.93,148.89,23.5068]
[1719984176212,21.8945,148.93,148.89,23.5068]
[1719984177422,15.18,148.93,148.89,23.5068]
[1719984177619,13.71130357,148.94,148.89,23.5068]
[1719984177825,15.18,148.93,148.89,23.5068]
[1719984179337,13.71130357,148.94,148.89,23.5068]
[1719984179500,15.18,148.93,148.89,23.5068]
[1719984179817,15.18,148.93,148.9,6.7157]
[1719984180014,13.71130357,148.94,148.9,6.7157]
[1719984180233,28.89130357,148.94,148.9,6.7157]
[1719984181727,6.7145,148.93,148.89,23.5068]
[1719984181928,21.8945,148.93,148.89,23.5068]
[1719984182129,21.8945,148.93,148.89,16.7905]
[1719984182130,6.715,148.92,148.89,16.7905]
[1719984182307,6.715,148.92,148.88,6.7167]
[1719984182511,6.715,148.92,148.87,21.8971]
[1719984182512,21.895,148.92,148.87,21.8971]
[1719984182826,21.895,148.92,148.88,6.7167]
[1719984184825,15.18,148.91,148.88,6.7167]
[1719984186406,15.18,148.91,148.87,6.7171]
[1719984186906,15.18,148.9,148.87,6.7171]
[1719984187404,15.18,148.9,148.88,6.7166]
[1719984191026,15.18,148.9,148.87,6.7171]
[1719984191229,6.99781322,148.92,148.89,6.7163]
[1719984191526,6.99781322,148.92,148.9,6.7159]
[1719984191731,15.18,148.92,148.9,6.7159]
[1719984192530,6.99488488,148.94,148.91,6.7154]
[1719984192732,15.18,148.94,148.92,6.7146]
[1719984193310,15.18,148.95,148.92,6.7146]
[1719984195133,28.27544331,148.96,148.92,6.7146]
[1719984195539,15.18,148.95,148.92,6.7146]
[1719984196135,15.18,148.95,148.91,6.7153]
[1719984196812,21.8936,148.95,148.91,6.7153]
[1719984198430,6.7141,148.94,148.9,23.5047]
[1719984198629,21.8941,148.94,148.9,23.5047]
[1719984200834,15.18,148.94,148.9,23.5047]
[1719984201636,15.18,148.94,148.91,6.7152]
[1719984202139,21.8941,148.94,148.9,23.5048]
[1719984202436,15.18,148.92,148.9,16.789]
[1719984203513,15.18,148.92,148.88,6.7166]
[1719984204129,15.18,148.91,148.88,6.7166]
[1719984206207,15.18,148.9,148.87,23.5094]
[1719984208634,15.18,148.91,148.87,16.7923]
[1719984208838,6.7147,148.93,148.87,31.9723]
[1719984209020,15.18,148.92,148.87,31.9723]
[1719984209740,15.18,148.92,148.89,6.7163]
[1719984211137,15.18,148.92,148.88,6.7167]
[1719984211343,15.18,148.9,148.87,16.7923]
[1719984212041,15.18,148.9,148.87,23.5095]
[1719984213441,15.18,148.9,148.88,6.7166]
[1719984214039,15.18,148.91,148.88,6.7166]
[1719984215946,15.18,148.91,148.87,23.5094]
[1719984216553,15.18,148.91,148.88,6.7167]
[1719984217335,6.99657337,148.93,148.88,6.7167]
[1719984217336,6.99657337,148.93,148.9,16.7897]
[1719984217653,15.18,148.95,148.9,16.7897]
[1719984218151,15.18,148.94,148.9,16.7897]
[1719984218754,15.18,148.94,148.91,6.7154]
[1719984221834,21.8942,148.94,148.9,23.5054]
[1719984222040,15.18,148.93,148.9,23.5054]
[1719984223959,15.18,148.92,148.9,16.7897]
[1719984225449,15.18,148.92,148.88,6.7166]
[1719984225634,15.18,148.91,148.87,23.5099]
[1719984226863,15.18,148.9,148.87,23.5099]
[1719984227461,15.18,148.9,148.88,6.7166]
[1719984230044,15.18,148.89,148.88,6.7166]
[1719984232345,15.18,148.9,148.88,6.7166]
[1719984239462,6.98930214,148.91,148.9,6.7159]
[1719984239653,15.18,148.93,148.91,6.7154]
[1719984240370,22.16718236,148.94,148.92,6.7149]
[1719984240672,22.16718236,148.94,148.91,6.7153]
[1719984242049,22.16718236,148.94,148.9,6.7158]
[1719984242376,6.98718236,148.94,148.86,16.7934]
[1719984242675,15.18,148.9,148.87,6.7169]
[1719984243158,15.18,148.91,148.87,6.7169]
[1719984243751,6.7151,148.92,148.88,6.7166]
[1719984243947,15.18,148.91,148.87,6.7171]
[1719984244367,15.18,148.91,148.88,6.7166]
[1719984245870,15.18,148.91,148.87,6.7171]
[1719984246553,15.18,148.9,148.87,6.7171]
[1719984249085,15.18,148.9,148.88,6.7167]
[1719984249777,15.18,148.91,148.88,6.7167]
[1719984253689,28.89012002,148.92,148.88,6.7167]
[1719984254182,6.99502002,148.92,148.89,6.7162]
[1719984256185,6.99502002,148.92,148.91,23.504]
[1719984256494,15.18,148.96,148.93,6.7142]
[1719984257169,21.8929,148.97,148.92,6.7148]
[1719984257383,26.7132,148.96,148.92,6.7148]
[1719984257563,41.8932,148.96,148.92,6.7148]
[1719984258791,41.8932,148.96,148.91,23.5039]
[1719984259001,21.8937,148.95,148.91,23.5039]
[1719984264204,6.7142,148.94,148.88,39.2278]
[1719984264380,21.8946,148.93,148.88,39.2278]
[1719984264704,21.8946,148.93,148.88,31.9713]
[1719984264890,15.18,148.92,148.88,16.7913]
[1719984265805,15.18,148.92,148.89,6.7163]
[1719984267093,7.00075553,148.93,148.9,6.7157]
[1719984267403,15.18,148.92,148.9,6.7157]
[1719984267600,22.18075553,148.93,148.89,6.7162]
[1719984271107,22.18075553,148.93,148.9,6.7159]
[1719984271586,7.00075553,148.93,148.9,6.7159]
[1719984271789,22.18075553,148.93,148.9,6.7159]
[1719984276094,15.18,148.92,148.88,16.7913]
[1719984276415,15.18,148.92,148.88,23.5078]
[1719984277110,15.18,148.92,148.89,6.7162]
[1719984288123,22.18075553,148.93,148.9,6.7159]
[1719984288509,15.18,148.92,148.9,6.7159]
[1719984289201,15.18,148.92,148.88,23.5077]
[1719984290817,21.895,148.92,148.88,23.5077]
[1719984291011,15.18,148.91,148.85,16.7951]
[1719984291215,35.6681,148.95,148.85,16.7951]
[1719984291216,15.18,148.89,148.85,16.7951]
[1719984291813,15.18,148.88,148.85,16.7951]
[1719984292820,15.18,148.88,148.85,23.5129]
[1719984294817,21.8968,148.88,148.85,16.7951]
[1719984295907,6.7168,148.88,148.85,16.7951]
[1719984296121,21.8968,148.88,148.85,16.7951]
[1719984297524,6.7172,148.87,148.83,21.899]
[1719984297726,21.8968,148.88,148.84,6.7186]
[1719984298042,6.7172,148.87,148.83,21.8989]
[1719984299429,6.7172,148.87,148.83,6.7189]
[1719984299648,6.7172,148.87,148.83,21.8989]
[1719984300229,22.17598158,148.9,148.84,16.7959]
[1719984300424,6.99598158,148.9,148.86,15.18]
[1719984301434,13.71188158,148.9,148.86,38.6912]
[1719984302532,13.71188158,148.9,148.86,23.5112]
[1719984305937,28.89188158,148.9,148.86,23.5112]
[1719984306536,6.7164,148.89,148.85,21.8981]
[1719984306740,21.8964,148.89,148.84,21.8983]
[1719984307228,6.7173,148.87,148.83,23.516]
[1719984307638,13.71448717,148.88,148.83,23.516]
[1719984307816,13.71448717,148.88,148.84,6.7185]
[1719984308937,28.89448717,148.88,148.84,6.7185]
[1719984310041,22.17758717,148.88,148.8,38.2036]
[1719984310336,15.18,148.84,148.78,15.18]
[1719984310638,15.18,148.83,148.79,6.7205]
[1719984310819,15.18,148.83,148.77,16.8037]
[1719984311009,21.8992,148.83,148.79,6.7207]
[1719984311211,6.7182,148.85,148.8,6.7203]
[1719984311423,15.18,148.85,148.81,6.7199]
[1719984311619,6.7178,148.86,148.81,6.7199]
[1719984311833,6.99758717,148.88,148.83,6.7186]
[1719984312032,20.0,148.87,148.84,6.7184]
[1719984312226,20.0,148.87,148.83,6.719]
[1719984312836,41.8976,148.87,148.82,23.518]
[1719984313221,15.18,148.86,148.82,23.518]
[1719984314319,21.8978,148.86,148.82,16.7985]
[1719984315337,21.8982,148.85,148.8,6.7203]
[1719984315527,15.18,148.84,148.8,6.7203]
[1719984315724,15.18,148.83,148.79,23.5223]
[1719984316058,6.7186,148.84,148.8,6.7203]
[1719984316059,21.8986,148.84,148.8,6.7203]
[1719984316217,20.0,148.87,148.81,31.9792]
[1719984316419,15.18,148.86,148.82,6.7192]
[1719984317222,21.8977,148.86,148.82,6.7192]
[1719984317416,21.8977,148.86,148.81,23.5191]
[1719984317623,20.0,148.87,148.81,23.5191]
[1719984317624,28.90422118,148.85,148.81,23.5191]
[1719984318940,22.18602118,148.85,148.81,23.5191]
[1719984319150,28.90422118,148.85,148.81,16.7992]
[1719984319315,22.18602118,148.85,148.81,23.5188]
[1719984319519,15.18,148.84,148.8,6.7204]
[1719984319937,15.18,148.84,148.81,6.7199]
[1719984321124,7.00602118,148.85,148.81,6.7199]
[1719984321332,13.72422118,148.85,148.81,6.7199]
[1719984324054,7.00602118,148.85,148.76,21.6297]
[1719984324225,15.18,148.81,148.77,16.8039]
[1719984324545,15.18,148.81,148.78,6.7213]
[1719984325119,15.18,148.81,148.77,23.5256]
[1719984325442,15.18,148.8,148.77,16.8039]
[1719984325643,15.18,148.8,148.77,23.5253]
[1719984325945,15.18,148.79,148.77,23.5253]
[1719984326332,6.7199,148.82,148.78,6.7213]
[1719984326541,15.18,148.8,148.79,6.7208]
[1719984327242,15.18,148.81,148.79,6.7208]
[1719984328034,14.1446012,148.81,148.79,6.7208]
[1719984328235,15.18,148.8,148.78,6.7212]
[1719984328836,15.18,148.8,148.77,23.5255]
[1719984329151,15.18,148.8,148.78,6.7211]
[1719984330534,15.18,148.81,148.77,16.8039]
[1719984330745,15.18,148.81,148.8,6.7204]
[1719984330945,26.7177,148.87,148.82,6.7191]
[1719984331126,15.18,148.85,148.81,16.7989]
[1719984331326,22.18847268,148.85,148.81,16.7989]
[1719984332032,7.00847268,148.85,148.81,16.7989]
[1719984332742,7.00847268,148.85,148.83,6.7189]
[1719984333529,7.00847268,148.85,148.82,6.7194]
[1719984333727,6.7186,148.84,148.81,16.7989]
[1719984334048,7.00847268,148.85,148.81,16.7989]
[1719984334049,15.18,148.83,148.81,16.7989]
[1719984334230,15.18,148.83,148.81,23.5188]
[1719984335756,15.18,148.83,148.8,6.7203]
[1719984336067,15.18,148.82,148.79,6.7207]
[1719984336437,6.7191,148.83,148.79,6.7207]
[1719984336645,15.18,148.82,148.79,6.7207]
[1719984337048,15.18,148.82,148.8,6.7204]
[1719984337850,15.18,148.83,148.81,16.7999]
[1719984338055,7.00847268,148.85,148.81,23.5196]
[1719984338256,35.18,148.84,148.82,6.7194]
[1719984338756,20.0,148.84,148.82,6.7194]
[1719984339353,20.0,148.84,148.81,23.5197]
[1719984340261,35.18,148.84,148.81,23.5197]
[1719984340641,7.00847268,148.85,148.82,6.7194]
[1719984340835,15.18,148.84,148.82,6.7194]
[1719984341237,15.18,148.84,148.81,23.5197]
[1719984344170,15.18,148.83,148.81,23.5197]
[1719984344550,15.18,148.84,148.81,23.5197]
[1719984346978,15.18,148.83,148.81,23.5197]
[1719984348654,15.18,148.82,148.79,6.7205]
[1719984348980,15.18,148.81,148.79,6.7205]
[1719984349149,15.18,148.81,148.77,6.7216]
[1719984349150,15.18,148.8,148.77,6.7216]
[1719984349356,15.18,148.79,148.78,6.7213]
[1719984349957,15.18,148.8,148.78,6.7213]
[1719984350476,15.18,148.8,148.75,16.1043]
[1719984350477,7.01214428,148.81,148.79,6.7208]
[1719984350654,15.18,148.82,148.79,6.7208]
[1719984350975,7.01266184,148.82,148.79,6.7208]
[1719984351150,15.18,148.81,148.79,6.7208]
[1719984351880,7.01266184,148.82,148.8,6.7204]
[1719984352081,22.19266184,148.82,148.8,6.7204]
[1719984352663,7.01266184,148.82,148.8,6.7204]
[1719984352859,7.01266184,148.82,148.81,6.7199]
[1719984353054,15.18,148.84,148.81,6.7199]
[1719984354877,15.18,148.84,148.8,6.7203]
[1719984355064,15.18,148.84,148.81,6.7198]
[1719984355462,15.18,148.84,148.8,6.7203]
[1719984356262,21.8986,148.84,148.8,6.7203]
[1719984356669,15.18,148.84,148.81,6.7199]
[1719984357276,15.18,148.83,148.8,6.7203]
[1719984359876,15.18,148.83,148.81,6.7199]
[1719984360381,13.72877153,148.85,148.83,6.7188]
[1719984360382,7.01047153,148.85,148.83,6.7188]
[1719984360574,15.18,148.84,148.83,6.7188]
[1719984360776,15.18,148.84,148.82,6.7195]
[1719984361103,22.19047153,148.85,148.83,6.719]
[1719984361274,22.19047153,148.85,148.82,6.7194]
[1719984361468,22.19047153,148.85,148.81,23.519]
[1719984361786,15.18,148.83,148.81,16.7992]
[1719984361987,15.18,148.82,148.8,6.7202]
[1719984362279,15.18,148.83,148.8,6.7202]
[1719984362495,15.18,148.83,148.81,6.7199]
[1719984363968,15.18,148.84,148.81,6.7199]
[1719984364376,15.18,148.83,148.81,6.7199]
[1719984366175,15.18,148.84,148.81,6.7199]
[1719984366584,15.18,148.84,148.8,23.5209]
[1719984366989,15.18,148.83,148.8,23.5209]
[1719984367578,15.18,148.83,148.81,6.7199]
[1719984369102,15.18,148.84,148.81,6.7199]
[1719984369282,15.18,148.84,148.82,6.7194]
[1719984369484,22.19047153,148.85,148.83,6.7187]
[1719984369794,22.19047153,148.85,148.82,23.5176]
[1719984369975,15.18,148.84,148.82,23.5176]
[1719984370176,15.18,148.83,148.8,6.7199]
[1719984370401,15.18,148.81,148.79,23.522]